Cogmind - Beta 16 @@@ ROGUE MODE // 2025.12.20 @ 06:04:45 Player: shapeshifter Result: Destroyed by RQ-381(j) with Overtuned Pulse Rifle Performance ------------- Evolutions (1) 500 Regions Visited (6) 1200 Robots Destroyed (54) 270 Value Destroyed (1622) 1622 Prototype IDs (16) 320 Alien Tech Used (0) 0 Bonus (985) 985 TOTAL SCORE: 4897 Bonus ------- Follower Combat Kills 342 Registered with UFD 300 Met Optimus in HQ 500 Friendly Fire -157 Cogmind --------- Core Integrity 0/400 Matter 234/300 Energy 310/310 System Corruption 0% Temperature Warm (195) Movement Rolling (125) Ox2 Location -9/Scraptown Parts ------- > --- POWER (1) -------- Fission Core > --- PROPULSION (3) --- Armored Wheel Armored Huge Wheel > --- UTILITY (3) ------ Huge Storage Unit Improved Heavy Armor Plating > --- WEAPON (2) ------- Gauss Rifle Gauss Rifle > --- INVENTORY (25) --- Compact Wheel Cooling System High-capacity Storage Unit Advanced Sensor Array Experimental Terrain Scanner Core Analyzer Medium Armor Plating Force Field Hacking Suite Authchip [Propulsion] Authchip [Armor] Authchip [Weapon] Splice Drone Bay (6/6) Assault Cannon Siege Cannon Replica LU-1G1's Laser Shovel Plasma Cutter CPS Tube (2) CPS Tube (2) CPS Tube (2) PL-3XN's Ring of Power Peak State ------------ > --- POWER ------------ Fission Core > --- PROPULSION ------- Armored Wheel Armored Huge Wheel > --- UTILITY ---------- High-capacity Storage Unit Improved Heavy Armor Plating > --- WEAPON ----------- Gauss Rifle LU-1G1's Laser Shovel > --- INVENTORY -------- Compact Wheel Cooling System Huge Storage Unit Advanced Sensor Array Experimental Terrain Scanner Core Analyzer Medium Armor Plating Force Field Hacking Suite Authchip [Propulsion] Authchip [Armor] Authchip [Weapon] Splice Drone Bay Gauss Rifle Assault Cannon Plasma Cutter CPS Tube CPS Tube CPS Tube PL-3XN's Ring of Power [Rating: 43] Favorites ----------- Power Improved Ion Engine Engine Improved Ion Engine Power Core Fission Core Propulsion Light Treads Treads Light Treads Wheel Armored Huge Wheel Utility Large Storage Unit Device Shield Generator Storage Large Storage Unit Protection Improved Heavy Armor Plating Weapon Gauss Rifle Energy Gun Medium Laser Energy Cannon Particle Cannon Ballistic Gun Gauss Rifle Special Weapon LU-1G1's Laser Shovel Special Melee Weapon Datajack Build | -11 -10 -10 -9 -9 -9 -9 ------- Run | Yrd Mat Min Mat Sto Rec Scr Slots Evolved 2 | . . . 2 . . . Power . | . . . . . . . Propulsion 1 | . . . 1 . . . Utility 1 | . . . 1 . . . Weapon . | . . . . . . . Parts Attached 47 | 7 14 3 1 4 10 8 Power 7 | 1 2 1 . . 1 2 Engine 4 | 1 1 . . . 1 1 Core 3 | . 1 1 . . . 1 Reactor . | . . . . . . . Propulsion 11 | 2 2 . 1 2 2 2 Treads 9 | 2 2 . 1 2 2 . Leg . | . . . . . . . Wheel 2 | . . . . . . 2 Hover . | . . . . . . . Flight . | . . . . . . . Utility 15 | 2 5 2 . . 3 3 Device 5 | 1 . 2 . . 2 . Storage 5 | 1 2 . . . . 2 Processor . | . . . . . . . Hackware . | . . . . . . . Protection 5 | . 3 . . . 1 1 Artifact . | . . . . . . . Weapon 14 | 2 5 . . 2 4 1 Energy Gun 5 | . 4 . . . 1 . Energy Cannon 1 | . . . . 1 . . Ballistic Gun 6 | 2 1 . . 1 2 . Ballistic Cannon . | . . . . . . . Launcher . | . . . . . . . Special Weapon 1 | . . . . . . 1 Impact Weapon . | . . . . . . . Slashing Weapon . | . . . . . . . Piercing Weapon . | . . . . . . . Special Melee Weapon 1 | . . . . . 1 . Unidentified Prototypes 2 | . . 1 . . . 1 Parts Lost 11 | . 3 . 3 3 2 . Power 1 | . . . . 1 . . Propulsion 1 | . . . . 1 . . Utility 4 | . 1 . 2 . 1 . Weapon 5 | . 2 . 1 1 1 . Highest Loss Streak 3 | . 2 . 3 2 2 . To Critical Strikes . | . . . . . . . Average Backups 15 | 2 8 11 7 8 11 21 Power . | . . . . . . . Propulsion 1 | . 2 3 2 1 . 1 Utility 8 | . 4 6 4 4 6 12 Weapon 2 | . . 1 . 1 2 2 Tool/Special . | . . . . . . . Unused Backups 35 | . 1 . . . 1 33 Power 1 | . . . . . . 1 Propulsion 3 | . . . . . . 3 Utility 18 | . 1 . . . 1 16 Weapon 5 | . . . . . . 5 Tool/Special 8 | . . . . . . 8 Average Slot Usage (%) 92 | . 99 98 98 98 97 86 Engine 7 | . 12 . . . 9 6 Core 4 | . 1 12 11 10 . 4 Treads 22 | . 27 28 33 33 33 14 Wheel 5 | . . . . . . 11 Device 8 | . 4 11 18 22 16 4 Storage 11 | . 14 14 11 11 11 11 Protection 8 | . 9 2 2 . 4 10 Energy Gun 3 | . 9 14 11 3 1 . Ballistic Gun 19 | . 18 14 11 11 18 21 Peak Build Rating 43 | 7 11 17 16 18 24 43 Average Rating 24 | 5 8 12 14 16 20 34 On Entrance 11 | . 7 11 14 14 14 22 Avg Prop Armor Cover (%) 5 | . . . . . . 5 Naked Turns . | . . . . . . . Heaviest Build 113 | 15 32 32 33 34 44 113 Greatest Support 63 | 40 40 40 60 63 63 63 Greatest Overweight (x) 3 | . . . . . . 3 Average Overweight (x) . | . . . . . . 1 Largest Inventory Capacity 25 | 8 15 15 15 15 15 25 Average Capacity 18 | 7 10 15 15 15 15 23 Most Carried 25 | 5 11 13 11 9 15 25 Average Carried 15 | 2 8 11 7 8 11 21 Final Capacity 25 | 8 15 15 15 15 15 25 Final Carried 23 | 3 10 12 7 8 14 23 Class Distribution -------------------- 64% | Commander-Mutant 29% | Mutant 6% | Scavenger-Mutant Dominant Class ---------------- Mutant | -10/Materials Mutant | -10/Mines Scavenger-Mutant | -9/Materials Scavenger-Mutant | -9/Storage Commander-Mutant | -9/Recycling Commander-Mutant | -9/Scraptown Resources | -11 -10 -10 -9 -9 -9 -9 ----------- Run | Yrd Mat Min Mat Sto Rec Scr Matter Collected 1521 | 259 345 164 162 102 201 288 Remotely . | . . . . . . . Salvage Created 2295 | 112 850 168 196 319 346 304 Parts 108 | 11 37 9 13 16 11 11 Haulers Intercepted 3 | . 2 . 1 . . . Recyclers Shooed 1 | . . . . . 1 . Parts Field Recycled . | . . . . . . . Retrieved Matter . | . . . . . . . Parts Self-Destructed . | . . . . . . . Prevented . | . . . . . . . Parts Restored . | . . . . . . . Kills | -11 -10 -10 -9 -9 -9 -9 ------- Run | Yrd Mat Min Mat Sto Rec Scr Combat Hostiles Destroyed 41 | . 16 2 6 6 7 4 Melee 1 | . 1 . . . . . Guns 36 | . 15 2 6 2 7 4 Cannons 4 | . . . . 4 . . Classes Destroyed 14 | 2 3 . 1 1 2 5 Builder 1 | . . . . . 1 . Tunneler 3 | 3 . . . . . . Hauler 3 | . 2 . 1 . . . Recycler 2 | 1 . 1 . . . . Turret 1 | . . . . . . 1 Watcher 2 | . 2 . . . . . Swarmer 4 | . . . 4 . . . Grunt 26 | . 16 2 2 2 4 . Sentry 5 | . . . . 4 1 . Hunter 2 | . . . . . 2 . Federalist 1 | . . . . . . 1 Explorer 2 | . . . . . . 2 Guru 1 | . . . . . . 1 Scrapper 1 | . . . . . . 1 Best Kill Streak 5 | 2 4 2 5 3 4 4 Combat Bots Only 5 | . 2 1 5 3 4 3 Max Kills in Single Turn 2 | 1 2 1 1 1 2 1 Gunslinging . | . . . . . . . Exploded . | . . . . . . . Melee 1 | . 1 . . . . . Uniques/NPCs Destroyed . | . . . . . . . Combat | -11 -10 -10 -9 -9 -9 -9 -------- Run | Yrd Mat Min Mat Sto Rec Scr Hostile Shots Fired 339 | . 118 21 54 61 25 60 Missed 103 | . 40 6 14 20 7 16 Hits 236 | . 78 15 40 41 18 44 Melee 4 | . . . . . . 4 Projectile 232 | . 78 15 40 41 18 40 Critical Strikes 5 | . 3 . . 1 . 1 Damage Taken 2959 | . 1028 206 415 521 200 589 Core 610 | . 155 42 68 153 51 141 Absorbed by Shields 63 | . . . . . . 63 Regen/Repaired (Parts) 191 | . 191 . . . . . Core Remaining (%) 60 | 100 . 21 . . . . Volleys Fired 212 | 9 81 18 25 37 14 28 Largest 2 | 2 2 2 2 2 2 2 Hottest 91 | 40 80 85 85 91 91 56 Shots Fired 408 | 18 157 27 50 73 27 56 Gun 370 | 18 157 27 50 39 23 56 Cannon 38 | . . . . 34 4 . Launcher . | . . . . . . . Special . | . . . . . . . Kinetic 284 | 18 118 13 25 37 17 56 Thermal 124 | . 39 14 25 36 10 . Explosive . | . . . . . . . Electromagnetic . | . . . . . . . Robot Hit Streak 39 | 10 8 6 5 39 3 8 Robot Miss Streak 5 | 2 4 3 5 4 3 5 Penetration Max 1 | . . . . . 1 1 Secondary Targets 8 | . 2 1 3 . 1 1 Max Gunslinging Chain 1 | . 1 1 1 . 1 1 Shots Hit Robots 274 | 12 101 18 29 55 26 33 Core Hits 98 | 5 42 6 14 9 9 13 Critical Kills 3 | . 1 . . . 1 1 Critical Parts Destroyed . | . . . . . . . Critical Strikes 5 | . 1 1 1 . 1 1 Burn 2 | . . 1 1 . . . Destroy 3 | . 1 . . . 1 1 Melee Attacks 16 | . . . . . 16 . Impact . | . . . . . . . Slashing . | . . . . . . . Piercing . | . . . . . . . Sneak Attacks 16 | . . . . . 16 . Combat Hostiles . | . . . . . . . Follow-up Attacks . | . . . . . . . Damage Inflicted 3984 | 147 1244 228 392 893 283 797 Guns 3339 | 147 1242 228 392 318 215 797 Cannons 638 | . . . . 575 63 . Explosions . | . . . . . . . Melee . | . . . . . . . Ramming 7 | . 2 . . . 5 . Kinetic 2528 | 147 898 71 151 306 158 797 Thermal 1449 | . 344 157 241 587 120 . Explosive . | . . . . . . . Electromagnetic . | . . . . . . . Impact . | . . . . . . . Slashing . | . . . . . . . Piercing . | . . . . . . . Highest Corruption . | . . . . . . . Average Corruption . | . . . . . . . Corruption Purged . | . . . . . . . Corruption Blocked . | . . . . . . . Overload Shots . | . . . . . . . Overflow Damage 2 | . . . . . 2 . Projectiles 2 | . . . . . 2 . Explosions . | . . . . . . . Melee . | . . . . . . . Knockbacks . | . . . . . . . Impact . | . . . . . . . Kinetic . | . . . . . . . Secondary . | . . . . . . . Self-Inflicted Damage . | . . . . . . . Shots . | . . . . . . . Rammed . | . . . . . . . Targets Rammed 2 | . 1 . . . 1 . Kicked . | . . . . . . . Crushed 2 | . 1 . . . 1 . Highest Temperature 420 | . 252 420 49 56 82 183 Average Temperature 78 | . 96 219 12 22 32 33 Received Heat Transfer 1246 | . 600 120 123 168 48 187 Effects 4 | . 2 2 . . . . Interference 3 | . 2 1 . . . . Short Circuit 1 | . . 1 . . . . Siege Activations . | . . . . . . . Martial Activations . | . . . . . . . Shielding Activations . | . . . . . . . Robots Disrupted . | . . . . . . . Combat Hostiles . | . . . . . . . Robots Corrupted . | . . . . . . . Combat Hostiles . | . . . . . . . Parts Fried . | . . . . . . . Impact Corruptions . | . . . . . . . Robots Melted . | . . . . . . . Combat Hostiles . | . . . . . . . Parts Melted 5 | . 1 . 1 3 . . Heat Transferred 3446 | . 893 444 777 1073 259 . Parts Sabotaged . | . . . . . . . Parts Stolen . | . . . . . . . Parts Stripped . | . . . . . . . Power Chain Reactions . | . . . . . . . Alert | -11 -10 -10 -9 -9 -9 -9 ------- Run | Yrd Mat Min Mat Sto Rec Scr Maximum Alert Level . | . . . . . . . Low Security (%) 100 | 100 100 100 100 100 100 . Level 1 . | . . . . . . . Level 2 . | . . . . . . . Level 3 . | . . . . . . . Level 4 . | . . . . . . . Level 5 . | . . . . . . . High Security . | . . . . . . . Max Security . | . . . . . . . Peak Influence 137 | 5 137 46 100 76 81 . Initial 25 | . . 16 . 15 25 . Average 39 | 1 73 8 61 29 18 . Influence Increases 1293 | 20 552 55 147 186 333 . Destroy 0b10 Robot/C 780 | . 320 40 120 120 180 . Destroy 0b10 Robot/NC 60 | 20 20 5 5 . 10 . Destroy Leader 180 | . 88 10 22 60 . . Allied During Kill 18 | . . . . . 18 . Successful Hack 88 | . 64 . . 5 19 . Select Force Hacks 150 | . 60 . . . 90 . Disable Machine 15 | . . . . . 15 . Destroy Structure 2 | . . . . 1 1 . Influence Decreases 1293 | 20 510 97 110 157 399 . Entered New Map 89 | . . 26 . 22 41 . Time Decay 1119 | 20 480 71 100 115 333 . Lost Part 80 | . 30 . 10 20 20 . Lost Ally 5 | . . . . . 5 . Squads Dispatched 8 | . 5 . . 3 . . Investigation 5 | . 4 . . 1 . . Extermination . | . . . . . . . Reinforcement 3 | . 1 . . 2 . . Assault . | . . . . . . . Garrison . | . . . . . . . Intercept . | . . . . . . . Searches Triggered . | . . . . . . . Construction Impeded . | . . . . . . . Haulers Reinforced . | . . . . . . . Active Scanning Responses . | . . . . . . . Cargo Convoy Interrupts . | . . . . . . . Stealth | -11 -10 -10 -9 -9 -9 -9 --------- Run | Yrd Mat Min Mat Sto Rec Scr Distress Signals 2 | . 1 . . 1 . . Communications Jammed . | . . . . . . . Distress Signals . | . . . . . . . Times Spotted 76 | . 24 2 7 12 7 24 Peak Tracking Total 5 | . 5 2 5 5 3 5 Tactical Retreats 1 | . . . . . . 1 Traps | -11 -10 -10 -9 -9 -9 -9 ------- Run | Yrd Mat Min Mat Sto Rec Scr Traps Triggered 5 | . 4 . . 1 . . Indirectly . | . . . . . . . Trap Hack Attempts . | . . . . . . . Triggered . | . . . . . . . Disarmed . | . . . . . . . Reprogrammed . | . . . . . . . Reused 1 | . . . . . . 1 Traps Extracted . | . . . . . . . Installed 1 | . . . . . . 1 Triggered . | . . . . . . . Most Traps Carried 1 | . . . . . . 1 Machines | -11 -10 -10 -9 -9 -9 -9 ---------- Run | Yrd Mat Min Mat Sto Rec Scr Machines Disabled 9 | . . . . . 1 8 Max in Single Turn 2 | . . . . . 1 2 Machines Repaired . | . . . . . . . Machines Dismantled . | . . . . . . . Machines Sabotaged . | . . . . . . . Overloaded Fab Kills . | . . . . . . . Hacking | -11 -10 -10 -9 -9 -9 -9 --------- Run | Yrd Mat Min Mat Sto Rec Scr Machines Accessed 26 | . 9 1 2 3 9 2 Terminals 15 | . 6 . 1 2 6 . Fabricators . | . . . . . . . Repair Stations 1 | . 1 . . . . . Recycling Units 7 | . 2 . 1 1 3 . Scanalyzers . | . . . . . . . Garrison Access . | . . . . . . . Total Hacks 76 | . 30 1 4 7 26 8 Successful 50 | . 24 1 1 5 11 8 Failed 26 | . 6 . 3 2 15 . Catastrophic 2 | . . . 1 . 1 . Database Lockouts . | . . . . . . . Manual 48 | . 18 . 2 6 22 . Terminals 43 | . 17 . 2 5 19 . Fabricators . | . . . . . . . Repair Stations 6 | . 6 . . . . . Recycling Units 18 | . 7 . 2 2 7 . Scanalyzers . | . . . . . . . Garrison Access . | . . . . . . . Terminal Hacks 16 | . 5 1 . . 2 8 Robot Analysis 7 | . . . . . . 7 Prototype ID Bank 1 | . 1 . . . . . Open Door 1 | . . 1 . . . . Terminal Index 1 | . 1 . . . . . Registered Components 1 | . 1 . . . . . Zone Layout 4 | . 2 . . . 2 . Proto ID Catalog 1 | . . . . . . 1 Fabricator Hacks . | . . . . . . . Repair Station Hacks 6 | . 6 . . . . . Scan Component 3 | . 3 . . . . . Repair 3 | . 3 . . . . . Recycling Unit Hacks 7 | . 4 . . 1 2 . Retrieve Components 7 | . 4 . . 1 2 . Scanalyzer . | . . . . . . . Garrison Access Hacks . | . . . . . . . Unauthorized Hacks 21 | . 9 . 1 4 7 . Terminals 16 | . 7 . 1 4 4 . Botnet 3 | . 2 . . 1 . . Operators 1 | . . . . 1 . . Skim 12 | . 5 . 1 2 4 . Fabricators . | . . . . . . . Repair Stations . | . . . . . . . Recycling Units 5 | . 2 . . . 3 . Tunnel 5 | . 2 . . . 3 . Scanalyzers . | . . . . . . . Garrison Access . | . . . . . . . Data Cores Recovered . | . . . . . . . Used . | . . . . . . . Hacking Detections 19 | . 8 . 2 1 8 . Full Trace Events 1 | . 1 . . . . . Feedback Events . | . . . . . . . Feedback Blocked . | . . . . . . . Robot Schematics Acquired . | . . . . . . . Robots Built . | . . . . . . . Authchips . | . . . . . . . Time . | . . . . . . . Total Robot Build Rating . | . . . . . . . Part Schematics Acquired . | . . . . . . . Parts Built . | . . . . . . . Authchips . | . . . . . . . Time . | . . . . . . . Total Part Build Rating . | . . . . . . . Part Studies Acquired . | . . . . . . . Parts Repaired 3 | . 3 . . . . . Time 78 | . 78 . . . . . Parts Recycled . | . . . . . . . Recycled Matter . | . . . . . . . Retrieved Matter . | . . . . . . . Retrieved Components 19 | . 9 . . 3 7 . Parts Scanalyzed . | . . . . . . . Part Schematics Acquired . | . . . . . . . Parts Damaged . | . . . . . . . Bothacking | -11 -10 -10 -9 -9 -9 -9 ------------ Run | Yrd Mat Min Mat Sto Rec Scr Used RIF Installer . | . . . . . . . Robots Hacked . | . . . . . . . Non-combat . | . . . . . . . Combat . | . . . . . . . Robot Hacks Applied . | . . . . . . . Relay Couplers Released . | . . . . . . . Fabnet Peak Effective % . | . . . . . . . Robots Rewired 17 | . . . . . 17 . Allies Hacked . | . . . . . . . Hacks Repelled . | . . . . . . . Allies | -11 -10 -10 -9 -9 -9 -9 -------- Run | Yrd Mat Min Mat Sto Rec Scr Total Allies 17 | . . . . . 17 . Largest Group 16 | . . . . . 16 16 Highest-Rated Group 221 | . . . . . 221 221 Highest-Rated Ally 34 | . . . . . 34 34 Total Orders 5 | . . . . . . 5 STAY 3 | . . . . . . 3 FOLLOW 1 | . . . . . . 1 GUARD 1 | . . . . . . 1 Ally Attacks 55 | . . . . . 7 48 Total Damage 1038 | . . . . . 138 900 Kills 13 | . . . . . 2 11 Allies Corrupted . | . . . . . . . Allies Melted 4 | . . . . . . 4 Intel | -11 -10 -10 -9 -9 -9 -9 ------- Run | Yrd Mat Min Mat Sto Rec Scr Active Infowar (turns) 1514 | 11 445 . 174 338 546 . Terrain 326 | . . . . . 326 . Seismic 1188 | 11 445 . 174 338 220 . Robot Analysis Total 7 | . . . . . . 7 Derelict Logs Recovered . | . . . . . . . Drone Launches . | . . . . . . . Drone Recoveries . | . . . . . . . Exploration | -11 -10 -10 -9 -9 -9 -9 ------------- Run | Yrd Mat Min Mat Sto Rec Scr Turns Passed 7926 | 160 1390 325 250 338 1504 3959 Spaces Moved 3912 | 87 533 171 110 130 756 2125 Core 20 | 20 . . . . . . Treads 2472 | 67 533 171 110 130 756 705 Legs . | . . . . . . . Wheels 1420 | . . . . . . 1420 Hover . | . . . . . . . Flight . | . . . . . . . Fastest Speed 50 | 50 160 160 160 160 160 110 Average Speed 158 | 134 160 160 160 160 160 157 Slowest Speed 240 | 160 160 160 160 160 160 240 Overloaded Moves . | . . . . . . . Propulsion Burnouts . | . . . . . . . Robots Hopped . | . . . . . . . Potential Cave-ins 4 | . . . . . . 4 Cave-ins Triggered . | . . . . . . . Exploration Rate (%) 52 | 6 88 47 9 30 99 87 Regions Visited 6 Branch Regions 4 Pre-discovered Areas 6 | . 2 1 . . 3 . Known Exits Taken 4 | . 1 1 1 . 1 . Unknown Exits Taken 2 | 1 . . . 1 . . Scrap Searched 7 | . . 1 . . . 6 Spaces Dug 11 | . . . . . . 11 Terrain Destroyed 10 | . . . . . . 10 Melee . | . . . . . . . Projectile . | . . . . . . . AOE . | . . . . . . . Terrain Rammed . | . . . . . . . Walls Destroyed . | . . . . . . . Machines Disabled . | . . . . . . . Actions | -11 -10 -10 -9 -9 -9 -9 --------- Run | Yrd Mat Min Mat Sto Rec Scr Total 5267 | 112 917 199 139 190 1013 2697 Wait 809 | . 254 . . 15 85 455 Move 3906 | 86 532 170 109 129 755 2125 Hop . | . . . . . . . Pick Up 94 | 10 21 4 . 4 16 39 Fast Attach 6 | . 4 . . . . 2 Attach 31 | 7 8 3 5 2 5 1 Detach 1 | . . 1 . . . . Swap 30 | . 7 1 . 2 10 10 Drop 55 | . 9 2 . 1 7 36 Fire 212 | 9 81 18 25 37 14 28 Melee 16 | . . . . . 16 . Ram . | . . . . . . . Kick . | . . . . . . . Crush 2 | . 1 . . . 1 . Escape Stasis . | . . . . . . . Rewire 104 | . . . . . 104 . Trap 1 | . . . . . . 1 Miscellaneous . | . . . . . . . Route ------- -11/Scrapyard -10/Materials (discovered 6 exits: *Mat x3 / *Min x2 / Sub) -10/Mines (discovered 2 exits: *Mat / Sub) -9/Materials (discovered 6 exits: Mat x2 / Min x2 / *Sto x2) -9/Storage -9/Recycling (discovered 2 exits: [*Fac] / *Scr) -9/Scraptown (discovered 2 exits: [*Fac x2]) History --------- Turn | Location | Event 5 | -11/Scrapyard | Discovered new exit (range 14) 161 | -11/Scrapyard | Entered Materials 304 | -10/Materials | Build established: Mutant 465 | -10/Materials | Discovered new exit (range 9) 576 | -10/Materials | Repaired Lgt. Treads 604 | -10/Materials | Repaired Lgt. Treads 632 | -10/Materials | Repaired Seismic Detector 761 | -10/Materials | Discovered new exit (range 14) 968 | -10/Materials | Discovered new exit (range 4) 1031 | -10/Materials | Discovered new exit (range 6) 1062 | -10/Materials | Core integrity fell below 50% 1272 | -10/Materials | Discovered new exit (range 12) 1320 | -10/Materials | Learned Storage security intel 1362 | -10/Materials | Identified exit to Mines 1396 | -10/Materials | Identified exit to Subcaves 1437 | -10/Materials | Learned location of 3 exits from Materials 1442 | -10/Materials | Learned location of 1 exit from Recycling 1457 | -10/Materials | Learned location of 2 exits from Mines 1482 | -10/Materials | Learned location of 2 exits from Materials 1518 | -10/Materials | Learned 2 Mines zone layouts 1551 | -10/Materials | Entered Mines 1552 | -10/Mines | Learned location of Storage (-9) 1552 | -10/Mines | Identified exit to Materials 1753 | -10/Mines | Found the Drone Emporium 1763 | -10/Mines | Found Prototype Device 1764 | -10/Mines | Identified Splice Drone Bay 1876 | -10/Mines | Entered Materials 1876 | -9/Materials | Evolved 2 slots: Propulsion x1, Utility x1 1877 | -9/Materials | Identified exit to Storage 1878 | -9/Materials | Identified exit to Mines 1878 | -9/Materials | Identified exit to Materials 1955 | -9/Materials | Lost 3 parts (2u1w) 2126 | -9/Materials | Entered Storage 2244 | -9/Storage | Build established: Scavenger-Mutant 2419 | -9/Storage | Core integrity fell below 50% 2442 | -9/Storage | Used back door to open Recycling access 2442 | -9/Storage | Discovered new exit (range 5) 2464 | -9/Storage | Entered Recycling 2465 | -9/Recycling | Identified exit to Scraptown 2619 | -9/Recycling | Discovered new exit (range 12) 3032 | -9/Recycling | Build established: Commander-Mutant 3894 | -9/Recycling | Scanned before Scraplab entrance 3917 | -9/Recycling | Entered Scraplab 3968 | -9/Recycling | Entered Scraptown 3968 | -9/Scraptown | Accompanied by 16 allies 4020 | -9/Scraptown | Visited Spacefarers 4032 | -9/Scraptown | Visited The Evicted 4055 | -9/Scraptown | Visited Awakened 4064 | -9/Scraptown | Visited Cyclists 4100 | -9/Scraptown | Visited Fellowship of the Rings 4149 | -9/Scraptown | Visited Symbiants 4609 | -9/Scraptown | Received an X-ray algorithm 4836 | -9/Scraptown | Discovered new exit (range 11) 5167 | -9/Scraptown | Visited UFD Registry 5167 | -9/Scraptown | Registered with UFD as "Cargoskull" 5217 | -9/Scraptown | Visited LU-1G1's Boring Crew 5251 | -9/Scraptown | Visited Infowarlord's Domain 5284 | -9/Scraptown | Visited Curators Association 5344 | -9/Scraptown | Visited Scrapoid Pod Storage 5376 | -9/Scraptown | Visited DA-N13 Charitable Foundation 5397 | -9/Scraptown | Found DCF Scrap (30 items) 5481 | -9/Scraptown | Visited Analyses Database 5534 | -9/Scraptown | Visited Junk Repository 5663 | -9/Scraptown | Visited Chapter 10 5686 | -9/Scraptown | Visited Science Guys 5796 | -9/Scraptown | Found Exp. Terrain Scanner 6683 | -9/Scraptown | Discovered new exit (range 3) 6689 | -9/Scraptown | Warned about trapping Scraptown 7290 | -9/Scraptown | Met Optimus 7290 | -9/Scraptown | Accepted into 0bPrime 7690 | -9/Scraptown | Civil war broke out across Scraptown 7697 | -9/Scraptown | Found PL-3XN's Ring of Power 7861 | -9/Scraptown | Found Prototype Special Weapon 7866 | -9/Scraptown | Identified LU-1G1's Laser Shovel 7892 | -9/Scraptown | Core integrity fell below 20% 7901 | -9/Scraptown | Found Siege Cannon Replica 7914 | -9/Scraptown | Lost 25 allies 7927 | -9/Scraptown | Destroyed by RQ-381(j) with Overtuned Pulse Rifle Last Messages --------------- 07893_ Autobeam Turret destroyed. 07896_ Acquired 18 matter. 07901_ Acquired Siege Cannon Replica. 07906_ Slug penetrates AF-XG4(j). 07909_ Destroyed Imp. Hover Unit. 07909_ Slug penetrates AF-XG4(j). 07909_ UQ-LC4(p) suffers critical hit (Destroy). 07909_ UQ-LC4(p) destroyed. 07910_ AF-XG4(j) cannibalizes EM Pulse Gun to repair Ovr. Pulse Rifle. 07912_ Slug penetrates AF-XG4(j). 07912_ AF-XG4(j) destroyed. 07918_ Slug penetrates NX-J81(x). 07921_ Slug penetrates RQ-381(j). 07924_ RQ-381(j) heat spikes uncontrollably. 07924_ RQ-381(j) overheating. 07924_ Slug penetrates RQ-381(j). 07924_ Slug penetrates NX-J81(x). 07924_ NX-J81(x) destroyed. 07924_ Enclosure breached. Map ----- +----------------------------------------------------+ | ""# "" "" X"#??????###"" "#? "#??? | | ""# " " ######### #"" "## "#??? | | / " "" !"#??? | | %= "" "## "#??? | | ! # " " ######### #"" "#? "#??? | | # "" "" ""#??????###"" "#??""" #??? | | [*""# "" "" ##????????#"" "#??#####??? | | %""# X"#????????#"" "#?????????? | | ! "# ##????????#"" ] "#??######## | | """### ################"" "#?" ""# | | """"""""""""""""""""""""""" "##" "# | | = ![""""" "" """""""""""""" " """ ?? | | = !%=%[ "##" """ ?? | | = %![=!! ! = "#?" """ ?? | | ! =%! !%= =% "#?? " "?? | | * !! [=!=%%%[! ##? " "?? | | %%* = !% = #??" """?? | | "" "" """""" """""""""" """""" ##???" "?? | | ##### ###########!########### #####[ #?????###?? | | # =%* #???# !| #???" "# #?????????? | | # # ! # #???# *%= #???#"" ""## #?????????? | | # # # #???# =%% #???#!" "!## #?????????? | | # # # #???# = ##### "!! "#; #?????????? | | # #######=##### " "!%*=%*% "# #?????????? | | # ![% " " " ###%j!! ""## ########### | | # # ""* #*##### ###?#@==! !## | | # # " " #!#???# #???#""= ""## # | | # # """ # #???#######???" """ "# | | # # # #????????????#### "]" #### | | ###########???????????????#"###"#??# | | ??????????????????????????###??##??# ########### | | ???????????###############?######### #####?????? | | ???????????#"""##"""##"""##"""##" "# """"#?????? | | ??"" ## ""## ""##" "##"""##"" ##" # "" "#?????? | | ?""" "#?????? | | ?""" " "#?????? | | ?""" = """"#?????? | | ??"" ##"""##"""##"" ##" "##!!%##"" ## ######?????? | | ??????#"""?#"""##"""##"""##"""##"""#?##??????????? | | ????????????????####################?????????????? | | ?????????????????????????????????????????????????? | | ?????????????????????????????????????????????????? | | ?????????????????????????????????????????????????? | | ?????????????????????????????????????????????????? | | ?????????????????????????????????????????????????? | | ?????????????????????????????????????????????????? | | ?????????????????????????????????????????????????? | | ?????????????????????????????????????????????????? | | ?????????????????????????????????????????????????? | | ?????????????????????????????????????????????????? | +----------------------------------------------------+ Best States ------------- Heat Dissipation 42 Energy Generation 18 Energy Capacity 310 Matter Stores 300 Matter Capacity 300 Sight Range 16 Terrain Scan Range 16 Terrain Scan Density 10 Armor Coverage 600 Evasion (%) 50 Recoil Reduction 3 Authchip Count 3 Item Schematics ----------------- None Robot Schematics ------------------ None Fabricated ------------ Nothing Repaired ---------- Lgt. Treads | 35% | -10/Materials Lgt. Treads | 39% | -10/Materials Seismic Detector | 25% | -10/Materials Studied --------- None Alien Tech Used ----------------- None Achievements -------------- None Challenges ------------ None Game ------ Seed ShrapnelTractorCompanion Manual? 0 Play Time 00:41:13 Cumulative 626.0 hours Start 2025.12.19 @ 04:23:06 End 2025.12.20 @ 06:04:45 Sessions 2 Manual Loads 0 Difficulty Rogue Special Mode None Game No. 793 Rogue 793 Adventurer 0 Explorer 0 Win Type - Total 23 Types 10/1/3/3/2/0/2/2/0/0 Lore% 96 Gallery% 92 Achievement% 80 Wizard Run 0 Options --------- Layout 2 ASCII 0 Keyboard 0 Movement Mouse Keybinds 0 Fullscreen 1 Font 24/Terminus Map View 50x44 Zoom Use 0% Tactical HUD 1 Map Filters NONE Filters NONE Steam 1 RUN: 481b2c0d-f244-415c-80aa-ed41dc1bbef7